bitfinex-derivatives/quotes_ETHF0:USTF0_20240920
["timestamp","ask_amount","ask_price","bid_price","bid_amount"]
[1726862583285,0.40094,2544.8,2543.7,30.99683312]
[1726862583286,0.374,2544.7,2544.4,1.02836564]
[1726862583593,0.39299,2544.5,2544.1,3.60084]
[1726862583792,3.475,2544.4,2544.1,3.2078]
[1726862584095,3.8499,2544.4,2544.1,3.2078]
[1726862584487,0.7799,2544.4,2544.1,3.2078]
[1726862584796,0.7799,2544.4,2544.1,3.60083]
[1726862584985,0.7799,2544.4,2544.2,0.39302]
[1726862585186,0.7799,2544.4,2544.1,3.2078]
[1726862585396,0.7799,2544.4,2544.3,0.39301]
[1726862585889,0.7799,2544.4,2544.2,0.39301]
[1726862588184,0.7799,2544.4,2544.1,7.30616564]
[1726862588390,0.7799,2544.4,2544.2,0.39301]
[1726862588787,0.7799,2544.4,2544.1,6.2778]
[1726862588988,0.7799,2544.4,2544.2,0.39302]
[1726862589699,0.7799,2544.4,2544.3,0.39301]
[1726862591285,0.7799,2544.4,2544.1,0.39303]
[1726862591498,0.7799,2544.4,2544.2,0.39302]
[1726862591793,0.7799,2544.4,2544.3,0.39301]
[1726862591991,0.7799,2544.4,2544.2,0.39302]
[1726862593500,0.7799,2544.4,2544.3,0.39301]
[1726862593887,0.7799,2544.4,2544.2,0.39301]
[1726862594598,0.7799,2544.4,2544.3,0.39301]
[1726862594791,0.7799,2544.4,2544.3,3.46301]
[1726862596394,0.374,2544.7,2544.4,0.39299]
[1726862596696,0.3912,2544.6,2544.4,0.39299]
[1726862598897,0.3912,2544.6,2544.5,0.39298]
[1726862602386,0.3912,2544.6,2544.3,3.07]
[1726862602387,0.3912,2544.6,2544.4,0.39299]
[1726862602591,0.3912,2544.6,2544.3,0.393]
[1726862602891,3.99197,2544.6,2544.3,0.393]
[1726862603492,3.99197,2544.6,2544.4,0.39299]
[1726862603692,3.599,2544.6,2544.4,0.39299]
[1726862603893,7.5294,2544.6,2544.1,0.98261]
[1726862604100,3.599,2544.6,2544.4,0.39299]
[1726862604298,0.3912,2544.6,2544.4,0.39299]
[1726862604507,0.3912,2544.6,2544.5,0.39298]
[1726862605399,0.3912,2544.6,2544.4,0.39298]
[1726862605701,0.3912,2544.6,2544.3,3.07]
[1726862605898,0.3912,2544.6,2544.4,0.39298]
[1726862606999,0.3912,2544.6,2544.5,0.39298]
[1726862608999,0.3912,2544.6,2544.4,0.39298]
[1726862609395,0.3912,2544.6,2544.5,0.39298]
[1726862612709,0.7574,2544.7,2544.6,1.37538]
[1726862612902,0.374,2544.7,2544.6,1.37538]
[1726862615104,0.374,2544.7,2544.6,5.11338]
[1726862618209,0.374,2544.7,2544.6,5.55096]
[1726862621614,0.374,2544.7,2544.4,3.2078]
[1726862621919,0.3865,2544.6,2544.4,3.60079]
[1726862622125,0.4046,2544.5,2544.4,3.60079]
[1726862623012,0.4046,2544.5,2544.4,0.39299]
[1726862623507,0.4046,2544.5,2544.4,1.81299]
[1726862626919,0.4046,2544.5,2544.4,2.84135564]
[1726862627316,0.4046,2544.5,2544.4,1.81299]
[1726862627522,0.4046,2544.5,2544.4,2.84135564]
[1726862633314,0.3865,2544.6,2544.5,1.37544]
[1726862633522,0.3865,2544.6,2544.5,3.82380564]
[1726862633721,0.3865,2544.6,2544.5,2.84134564]
[1726862637922,0.3865,2544.6,2544.5,3.82380564]
[1726862640626,0.3865,2544.6,2544.5,3.2858895]
[1726862640930,0.3865,2544.6,2544.5,4.02375019]
[1726862641115,0.3865,2544.6,2544.5,2.84344073]
[1726862642127,0.3865,2544.6,2544.5,6.38544073]
[1726862643427,1.93031638,2544.6,2544.5,9.59837999]
[1726862643934,1.93031638,2544.6,2544.5,8.61591999]
[1726862644136,0.3865,2544.6,2544.5,5.35498]
[1726862644427,0.3865,2544.6,2544.5,6.58340348]
[1726862644736,0.3865,2544.6,2544.5,6.58341027]
[1726862644923,0.3865,2544.6,2544.5,5.35498]
[1726862645124,0.3865,2544.6,2544.5,6.3855039]
[1726862646618,2.43795493,2544.6,2544.5,6.3855039]
[1726862647228,2.43795493,2544.6,2544.5,5.35498]
[1726862647433,2.43795493,2544.6,2544.5,1.81298]
[1726862647726,2.43795493,2544.6,2544.5,2.8435039]
[1726862647927,2.43795493,2544.6,2544.5,1.81298]
[1726862649032,2.43795493,2544.6,2544.5,2.8435039]
[1726862649227,2.43795493,2544.6,2544.5,1.81298]
[1726862649928,2.43795493,2544.6,2544.5,2.8435039]
[1726862651924,2.43795493,2544.6,2544.5,3.35551928]
[1726862652136,2.43795493,2544.6,2544.5,2.8435039]
[1726862652332,2.43795493,2544.6,2544.5,3.35553709]
[1726862653938,2.43795493,2544.6,2544.5,0.90501319]
[1726862654128,2.43795493,2544.6,2544.5,0.39298]
[1726862654129,0.3865,2544.6,2544.5,0.39298]
[1726862654939,0.3865,2544.6,2544.5,1.4239172]
[1726862655139,0.3865,2544.6,2544.5,2.8439172]
[1726862655438,2.44556823,2544.6,2544.5,2.8439172]
[1726862656530,2.44556823,2544.6,2544.5,3.35820011]
[1726862656736,2.44556823,2544.6,2544.5,2.32726291]
[1726862657243,2.44556823,2544.6,2544.5,2.84397163]
[1726862660139,0.3865,2544.6,2544.5,3.55643338]
[1726862660337,0.3865,2544.6,2544.5,4.53889338]
[1726862660535,0.3865,2544.6,2544.5,5.56664021]
[1726862660842,0.3865,2544.6,2544.5,6.10234788]
[1726862661431,0.3865,2544.6,2544.5,6.10234842]
[1726862664836,0.3865,2544.6,2544.5,9.64434842]
[1726862665036,0.3865,2544.6,2544.5,8.66188842]
[1726862666139,0.3865,2544.6,2544.5,8.66192271]
[1726862667248,0.3865,2544.6,2544.5,8.12621504]
[1726862667439,0.3865,2544.6,2544.5,8.61812803]
[1726862668346,0.3865,2544.6,2544.5,9.60058803]
[1726862670237,2.43306823,2544.7,2544.5,9.20760803]
[1726862670438,2.05924391,2544.9,2544.8,2.35761]
[1726862670644,0.3836,2545.2,2545.1,0.39289]
[1726862670845,0.3836,2545.2,2545.1,6.32298257]
[1726862671249,0.3836,2545.2,2545.1,5.29189]
[1726862671440,0.3836,2545.2,2545.1,6.32298257]
[1726862672152,0.3836,2545.2,2545.1,5.29189]
[1726862675148,0.3836,2545.2,2545.1,1.81289]
[1726862686464,0.3836,2545.2,2544.9,3.2078]
[1726862686767,0.39289,2545.1,2544.9,4.898]
[1726862686966,0.39289,2545.1,2544.9,5.29091]
[1726862687157,0.39289,2545.1,2545.0,0.3929]
[1726862688969,6.14964172,2545.2,2544.9,1.42]
[1726862689770,0.3929,2545.1,2545.0,0.3929]
[1726862690563,0.3929,2545.1,2545.0,1.8129]
[1726862691270,6.54253172,2545.2,2545.0,1.42]
[1726862691468,0.39289,2545.1,2545.0,1.81289]
[1726862693860,3.98429,2545.2,2545.1,0.39289]
[1726862694061,0.3836,2545.2,2545.1,0.39289]
[1726862697165,0.7601,2545.3,2545.2,0.39287]
[1726862697166,0.3722,2545.3,2545.2,0.39287]
[1726862697367,1.91408671,2545.3,2545.2,1.81287]
[1726862697762,0.3722,2545.3,2545.1,1.03109257]
[1726862697974,0.3722,2545.3,2545.2,1.42]
[1726862698267,0.3722,2545.3,2545.2,1.81287]
[1726862698463,0.3722,2545.3,2545.2,1.42]
[1726862700070,0.3722,2545.3,2545.2,1.81287]
[1726862703070,0.3722,2545.3,2545.2,1.42]
[1726862703372,0.3722,2545.3,2545.1,0.39288]
[1726862703574,0.39289,2545.1,2545.0,0.3929]
[1726862703775,3.2078,2545.1,2545.0,0.3929]
[1726862703968,4.4205,2545.1,2544.8,1.42]
[1726862704169,2.05542063,2544.9,2544.8,1.81293]
[1726862704870,2.05542063,2545.0,2544.9,0.39292]
[1726862705073,0.8198,2545.1,2545.0,0.3929]
[1726862707070,2.87670063,2545.1,2545.0,0.3929]
[1726862707469,2.87670063,2545.1,2544.8,1.03109257]
[1726862707470,6.80550063,2545.1,2544.8,2.45109257]
[1726862707665,5.26470063,2544.9,2544.8,0.39293]
[1726862708070,2.42760063,2544.9,2544.8,1.81293]
[1726862708871,6.35720063,2544.9,2544.6,1.03109257]
[1726862709072,0.39296,2544.7,2544.5,6.32006257]
[1726862709277,0.3795,2544.6,2544.5,5.28897]
[1726862709476,0.7518,2544.6,2544.5,5.28897]
[1726862716189,2.42760063,2544.9,2544.8,0.39293]
[1726862716381,0.3707,2544.9,2544.8,0.39293]
[1726862718277,0.3707,2544.9,2544.8,1.37527]
[1726862718480,0.3707,2544.9,2544.8,0.39293]
[1726862719177,0.3707,2544.9,2544.8,3.86993]
[1726862719985,0.3707,2544.9,2544.8,6.93993]
[1726862723890,0.7966,2545.0,2544.9,0.39292]
[1726862724087,2.44980063,2545.2,2545.1,0.39289]
[1726862724386,3.24630063,2545.2,2545.1,3.46289]
[1726862724590,1.58227,2545.2,2545.1,3.46289]
[1726862725292,3.63917063,2545.2,2545.1,3.46289]
[1726862726793,0.39289,2545.1,2544.9,4.09960484]
[1726862726980,3.63919063,2545.2,2545.1,0.39289]
[1726862732387,0.3929,2545.1,2545.0,0.39289]
[1726862733390,2.44980063,2545.1,2545.0,0.39289]
[1726862733993,0.3929,2545.1,2545.0,0.39289]
[1726862735788,0.39292,2544.9,2544.8,1.02960484]
[1726862735989,0.39293,2544.8,2544.7,0.39294]
[1726862736194,1.57193,2544.8,2544.7,0.39294]
[1726862736392,0.39296,2544.7,2544.6,3.86396]
[1726862737394,2.44986063,2544.7,2544.6,3.86396]
[1726862738189,2.44986063,2544.7,2544.6,6.93396]
[1726862738391,2.05690063,2544.7,2544.6,6.93396]
[1726862738581,3.62885063,2544.8,2544.7,0.39295]
[1726862739496,0.39295,2544.7,2544.6,6.93395]
[1726862739797,0.39298,2544.5,2544.4,0.39299]
[1726862739999,0.39296,2544.6,2544.5,3.07802]
[1726862741398,0.39296,2544.6,2544.5,3.471]
[1726862741898,2.44986063,2544.7,2544.5,3.471]
[1726862742393,2.44986063,2544.7,2544.5,3.07802]
[1726862742692,0.39296,2544.6,2544.5,3.47099]
[1726862743091,2.44986063,2544.7,2544.5,3.47099]
[1726862743391,2.44986063,2544.7,2544.5,0.39297]
[1726862744597,0.39298,2544.5,2544.4,3.86399]
[1726862744785,1.54121867,2544.5,2544.4,3.86399]
[1726862744989,1.54121867,2544.5,2544.3,1.02960484]
[1726862744990,7.1382,2544.5,2544.3,1.02960484]
[1726862745186,7.1382,2544.5,2544.3,0.39301]
[1726862745187,0.77501,2544.4,2544.3,0.39301]
[1726862746900,0.382,2544.4,2544.3,3.46301]
[1726862747098,1.9227796,2544.4,2544.3,3.46301]
[1726862747293,1.5407796,2544.5,2544.4,0.393]
[1726862749201,1.9225796,2544.6,2544.5,0.39298]
[1726862749389,1.9225796,2544.6,2544.5,3.46298]
[1726862749590,1.9225796,2544.6,2544.5,7.39258]
[1726862750896,1.9225796,2544.6,2544.5,3.46298]
[1726862751293,0.77476,2544.6,2544.5,3.46298]
[1726862751493,0.3818,2544.6,2544.5,3.46298]
[1726862753194,0.7885,2544.6,2544.5,3.46298]
[1726862754701,1.18146,2544.6,2544.5,0.39298]
[1726862756295,1.18146,2544.6,2544.2,4.23740484]
[1726862756296,0.7885,2544.6,2544.2,4.23740484]
[1726862756492,0.39303,2544.2,2544.1,28.6395]
[1726862756998,0.39303,2544.2,2544.1,29.03254]
[1726862757206,0.76653,2544.2,2544.1,29.03254]
[1726862757598,0.76653,2544.2,2544.1,28.6395]
[1726862758005,0.3735,2544.2,2544.1,32.10254]
[1726862758705,0.76653,2544.2,2544.1,32.10254]
[1726862759501,2.30633273,2544.2,2544.1,32.10254]
[1726862761198,2.30633273,2544.2,2544.1,31.7095]
[1726862762805,2.30633273,2544.2,2544.1,28.6395]
[1726862763006,1.7491,2544.2,2544.1,28.6395]
[1726862763212,4.69693,2544.2,2544.1,28.6395]
[1726862763404,4.69693,2544.2,2544.1,29.03254]
[1726862763604,4.69693,2544.2,2544.1,28.6395]
[1726862764110,4.69693,2544.2,2544.1,29.03254]
[1726862764903,6.23575291,2544.2,2544.1,29.03254]
[1726862765412,2.30510329,2544.2,2544.1,29.03254]
[1726862767413,0.76653,2544.2,2544.1,29.03254]
[1726862767613,2.30510329,2544.2,2544.1,29.03254]
[1726862769310,3.28767329,2544.2,2544.1,28.6395]
[1726862769714,3.28767329,2544.2,2544.1,29.03254]
[1726862769915,3.28767329,2544.2,2544.1,26.7903]
[1726862769916,9.73207,2544.2,2544.1,26.7903]
[1726862770216,6.66207,2544.2,2544.1,26.7903]
[1726862770419,5.6795,2544.2,2544.1,26.7903]
[1726862771205,9.73207,2544.2,2544.1,26.7903]
[1726862771409,17.78897063,2544.2,2544.1,23.2564]
[1726862771613,15.73207,2544.2,2544.1,20.7872]
[1726862771806,15.73207,2544.2,2544.1,20.7852]
[1726862771807,18.29031172,2544.2,2544.1,20.7852]
[1726862772006,18.29031172,2544.2,2544.1,19.8845]
[1726862772007,20.25546172,2544.2,2544.1,19.8845]
[1726862772217,20.25546172,2544.2,2544.1,17.8568]
[1726862772218,17.69722,2544.2,2544.1,17.8568]
[1726862772410,15.73207,2544.2,2544.1,16.77891]
[1726862772914,15.73207,2544.2,2544.1,14.91487]
[1726862774107,15.35857,2544.2,2544.1,14.91487]
[1726862774307,17.91304439,2544.2,2544.1,14.91487]
[1726862776016,15.35857,2544.2,2544.1,14.12749]
[1726862776510,17.91158853,2544.2,2544.1,14.12749]
[1726862776812,18.14207175,2544.2,2544.1,14.12749]
[1726862777210,15.58905322,2544.2,2544.1,14.12749]
[1726862779219,20.10722175,2544.2,2544.1,12.46098]
[1726862779524,20.10722175,2544.2,2544.1,11.65491]
[1726862779720,20.10716803,2544.2,2544.1,11.65491]
[1726862779911,17.55420322,2544.2,2544.1,9.55553]
[1726862780112,17.55420322,2544.2,2544.1,6.63605]
[1726862780313,17.55420322,2544.2,2544.1,3.67153]
[1726862780509,1.37597,2543.5,2543.4,0.4078]
[1726862780720,7.65377,2543.5,2543.4,0.4078]
[1726862780920,11.58577,2543.5,2543.4,0.4078]
[1726862781914,0.98292,2543.3,2542.7,0.39325]
[1726862782227,6.96091868,2543.1,2543.0,0.4019]
[1726862782527,8.637,2543.1,2543.0,0.4019]
[1726862782717,12.569,2543.1,2543.0,0.4019]
[1726862783117,14.09999054,2543.1,2543.0,0.4019]
[1726862783423,13.11699054,2543.1,2543.0,0.4019]
[1726862783811,10.04699054,2543.1,2543.0,0.4019]
[1726862785528,8.516,2543.1,2543.0,0.4019]
[1726862788622,1.37631,2542.9,2542.8,0.3945]
[1726862789928,1.37631,2542.9,2542.8,0.795]
[1726862790130,8.37911,2542.9,2542.8,0.795]
[1726862790324,8.37911,2542.9,2542.2,4.52433]
[1726862790325,14.02124029,2542.9,2542.2,4.52433]
[1726862790527,3.60111,2542.4,2542.3,1.1928]
[1726862791432,7.53471,2542.4,2542.3,1.1928]
[1726862791626,3.60111,2542.4,2542.3,1.1928]
[1726862792830,11.58798,2542.4,2542.3,1.1928]
[1726862793035,8.51798,2542.4,2542.3,1.1928]
[1726862793724,18.57125,2542.4,2542.3,1.1928]
[1726862793925,0.3934,2541.8,2541.6,0.39342]
[1726862794126,0.3934,2541.8,2541.7,0.3894]
[1726862794322,1.3769,2541.8,2541.7,0.3894]
[1726862795229,5.3113,2541.8,2541.7,0.3894]
[1726862796036,3.2078,2541.9,2541.7,3.4594]
[1726862796334,0.3934,2541.8,2541.7,0.3894]
[1726862796541,1.3769,2541.8,2541.7,0.3894]
[1726862796839,5.3113,2541.8,2541.7,0.3894]
[1726862797244,0.3934,2541.8,2541.7,0.3894]
[1726862797930,4.3278,2541.8,2541.7,0.3894]
[1726862798124,0.3934,2541.8,2541.7,0.3894]
[1726862806458,0.39343,2541.6,2541.5,0.3791]
[1726862806663,7.65481,2541.6,2541.5,0.7828]
[1726862806856,7.65481,2541.6,2541.3,0.4105]
[1726862806857,0.3935,2541.2,2540.9,0.39352]
[1726862807055,0.3935,2541.2,2540.9,0.39354]
[1726862807256,0.3935,2541.2,2541.0,0.39352]
[1726862807558,0.98371,2541.3,2540.8,1.2008]
[1726862807756,3.2078,2541.1,2540.9,0.39353]
[1726862808162,0.39353,2541.0,2540.8,1.2008]
[1726862808666,0.39348,2541.3,2541.0,0.39351]
[1726862808856,0.39348,2541.3,2541.0,3.46351]
[1726862809063,4.19145,2541.5,2541.0,3.46351]
[1726862809360,0.39349,2541.3,2541.1,0.39351]
[1726862809555,0.39349,2541.2,2541.0,3.46352]
[1726862809758,4.19145,2541.5,2541.0,3.46352]
[1726862809960,0.39349,2541.2,2541.0,3.46352]
[1726862810664,0.39348,2541.3,2541.0,3.07]
[1726862810867,0.39348,2541.3,2541.0,3.46351]
[1726862812756,0.39348,2541.3,2541.1,0.39351]
[1726862813259,0.39348,2541.3,2541.0,3.07]
[1726862813260,0.39348,2541.3,2541.2,0.3733]
[1726862817771,1.37717,2541.3,2541.2,0.3733]
[1726862817974,0.39353,2541.0,2540.8,1.19025]
[1726862818167,0.39354,2540.9,2540.8,0.7967]
[1726862818772,0.39354,2540.9,2540.8,1.19025]
[1726862819068,0.39353,2541.0,2540.8,1.19025]
[1726862819277,3.60134,2540.9,2540.8,0.7967]
[1726862820963,3.2078,2540.9,2540.8,1.19025]
[1726862821266,3.2078,2541.2,2541.0,0.39351]
[1726862821467,3.2078,2541.2,2541.1,0.3943]
[1726862822165,7.143,2541.2,2540.8,0.3862]
[1726862822368,3.60132,2541.1,2540.9,0.393]
[1726862822574,0.39352,2541.0,2540.9,0.393]
[1726862822772,3.60132,2541.1,2540.9,0.393]
[1726862823078,0.39352,2541.0,2540.9,0.393]
[1726862823277,3.60132,2541.1,2540.9,0.393]
[1726862823971,0.3877,2541.0,2540.4,1.16851]
[1726862824171,0.39355,2540.8,2540.4,1.16851]
[1726862824874,0.39354,2540.9,2540.5,0.3936]
[1726862825275,3.2078,2540.8,2540.5,0.3936]
[1726862826578,0.39355,2540.8,2540.5,0.3936]
[1726862826768,0.39354,2540.9,2540.4,0.7749]
[1726862826967,0.39354,2540.9,2540.6,0.39358]
[1726862827381,0.39354,2540.9,2540.7,0.371]
[1726862827769,1.41138972,2541.0,2540.7,0.371]
[1726862827974,4.22565972,2541.1,2540.8,3.07]
[1726862828275,3.2078,2541.1,2540.8,3.83704]
[1726862828470,3.2078,2541.1,2540.9,0.79213]
[1726862828678,3.2078,2541.1,2540.9,0.3986]
[1726862828877,3.2078,2541.1,2541.0,0.3918]
[1726862829778,3.60131,2541.1,2541.0,0.3918]
[1726862831475,1.01785972,2541.2,2541.0,0.78532]
[1726862831675,1.01785972,2541.3,2541.0,0.3918]
[1726862831875,0.39349,2541.2,2541.0,0.3918]
[1726862832077,1.41134972,2541.2,2541.0,0.78532]
[1726862832480,0.39349,2541.2,2541.0,0.78532]
[1726862832876,1.01785972,2541.3,2541.0,0.3918]
[1726862833080,0.3935,2541.2,2541.0,0.78531]
[1726862833581,0.3935,2541.2,2541.0,0.3918]
[1726862834172,1.41135972,2541.2,2541.0,0.3918]
[1726862834373,3.2078,2541.1,2541.0,0.3918]
[1726862834578,3.60131,2541.1,2541.0,0.3918]
[1726862834875,3.2078,2541.1,2541.0,0.3918]
[1726862835069,3.60131,2541.1,2541.0,0.3918]
[1726862835275,4.61916972,2541.1,2541.0,0.3918]
[1726862836781,3.60131,2541.1,2541.0,0.3918]
[1726862837377,5.13230054,2541.1,2541.0,0.3918]
[1726862838874,4.73879054,2541.1,2541.0,0.78532]
[1726862839075,1.53099054,2541.2,2541.1,0.39351]
[1726862839874,1.53099054,2541.2,2541.1,7.39871]
[1726862840184,0.29739054,2541.4,2541.3,0.39347]
[1726862841778,2.04193058,2541.4,2541.3,0.39347]
[1726862841980,2.43539058,2541.4,2541.3,0.39347]
[1726862842182,2.04193058,2541.4,2541.3,0.39347]
[1726862842972,2.04810188,2541.5,2541.4,0.39346]
[1726862843177,2.04801391,2541.6,2541.3,3.4519]
[1726862843381,2.04801391,2541.6,2541.5,0.39344]
[1726862843787,2.04801391,2541.6,2541.5,4.32784]
[1726862843977,2.04801391,2541.7,2541.6,0.39343]
[1726862846886,5.11801391,2541.7,2541.3,0.3819]
[1726862847089,2.44145391,2541.6,2541.5,0.39343]
[1726862847384,2.44145391,2541.6,2541.3,0.3819]
[1726862847385,0.39343,2541.6,2541.4,0.39345]
[1726862847584,2.04774275,2541.5,2541.4,0.39346]
[1726862849784,3.60123,2541.6,2541.5,0.39344]
[1726862850293,0.39345,2541.5,2541.4,0.39345]
[1726862850480,5.64898275,2541.6,2541.5,0.39344]
[1726862852389,5.64898275,2541.6,2541.3,0.3819]
[1726862852390,0.39346,2541.4,2541.3,0.3819]
[1726862852595,0.39347,2541.3,2541.2,0.77789]
[1726862852790,3.99877,2541.3,2541.2,0.77789]
[1726862852992,6.04711785,2541.3,2541.2,0.77789]
[1726862853191,3.99877,2541.3,2541.2,0.77789]
[1726862854292,3.6053,2541.3,2541.2,0.77789]
[1726862855598,3.2078,2541.3,2541.2,0.77789]
[1726862856690,2.44181785,2541.4,2541.3,0.39347]
[1726862856895,0.39347,2541.4,2541.3,0.39347]
[1726862858603,2.44181785,2541.4,2541.3,0.39347]
[1726862859494,0.39347,2541.4,2541.3,0.39347]
[1726862859696,2.44181785,2541.4,2541.3,0.39347]
[1726862859989,2.84640785,2541.5,2541.4,0.39346]
[1726862860584,2.84640785,2541.5,2541.3,0.39346]
[1726862860585,0.39346,2541.4,2541.3,0.39346]
[1726862860791,2.84639785,2541.5,2541.4,0.39346]
[1726862860992,2.84639785,2541.5,2541.2,0.3844]
[1726862860993,2.04834785,2541.5,2541.2,0.3844]
[1726862861208,0.39346,2541.4,2541.3,0.39346]
[1726862861498,2.44179785,2541.5,2541.4,0.39344]
[1726862864501,2.04834785,2541.5,2541.4,0.39344]
[1726862864701,0.39347,2541.4,2541.3,0.39346]
[1726862864906,3.91293323,2541.5,2541.2,0.3844]
[1726862865102,0.39346,2541.4,2541.3,0.39347]
[1726862865601,3.91293323,2541.5,2541.2,0.3844]
[1726862865800,2.04826349,2541.3,2541.2,0.77788]
[1726862866306,2.04826349,2541.3,2541.2,4.71308]
[1726862867003,2.44173349,2541.3,2541.2,0.77788]
[1726862868199,2.44173349,2541.3,2541.1,0.3775]
[1726862868200,0.39349,2541.2,2541.1,0.771]
[1726862868401,2.84935349,2541.2,2541.1,0.3775]
[1726862868706,0.8011,2541.2,2541.1,0.39351]
[1726862870505,4.0089,2541.2,2541.1,0.39351]
[1726862872309,6.0590396,2541.2,2541.1,0.39351]
[1726862873104,0.39351,2541.1,2541.0,0.39351]
[1726862873305,3.0339096,2541.1,2540.6,5.22136484]
[1726862873510,1.02529674,2540.7,2540.6,5.78194]
[1726862873808,1.02529674,2540.7,2540.6,4.79798]
[1726862874111,1.02529674,2540.7,2540.6,5.78195]
[1726862877407,1.02529674,2540.7,2540.6,6.62812]
[1726862877710,1.02529674,2540.7,2540.6,10.56412]
[1726862877907,2.0501396,2541.1,2540.9,0.39354]
[1726862878207,2.4436396,2541.2,2541.1,0.39351]
[1726862879002,0.3935,2541.2,2541.1,0.39351]
[1726862879403,2.44273154,2541.2,2541.1,0.39351]
[1726862879608,0.3935,2541.2,2541.1,0.39351]
[1726862880217,2.94589323,2541.4,2541.3,0.39347]
[1726862880406,0.39348,2541.4,2541.3,0.39347]
[1726862882213,0.39348,2541.4,2541.2,0.7987]
[1726862882415,3.46347,2541.3,2541.2,0.39349]
[1726862882615,3.84617,2541.3,2541.2,0.39349]
[1726862883903,0.39347,2541.3,2541.2,0.39349]
[1726862884810,2.94588323,2541.3,2541.2,0.39349]
[1726862885219,2.44328779,2541.3,2541.2,0.39349]
[1726862885412,2.04981779,2541.3,2541.2,0.39349]
[1726862885916,2.44328779,2541.3,2541.2,0.39349]
[1726862886619,2.04981779,2541.3,2541.2,0.39349]
[1726862886914,2.44328779,2541.3,2541.2,0.39349]
[1726862887115,0.39347,2541.3,2541.2,0.39349]
[1726862888624,2.44328779,2541.4,2541.3,0.39347]
[1726862889312,2.04981779,2541.4,2541.3,2.36085]
[1726862889517,5.25761779,2541.6,2541.5,0.39344]
[1726862889904,2.94583323,2541.7,2541.6,0.39343]
[1726862889905,2.04981779,2541.7,2541.6,0.39343]
[1726862890104,2.55241323,2541.8,2541.7,0.39341]
[1726862890105,2.04981779,2541.8,2541.7,0.39341]
[1726862890310,2.04981779,2541.9,2541.8,0.3934]
[1726862890715,0.39338,2541.9,2541.8,0.3934]
[1726862891517,2.44275805,2541.9,2541.8,0.3934]
[1726862891718,0.39338,2541.9,2541.8,0.3934]
[1726862892414,0.39338,2541.9,2541.7,0.3886]
[1726862892415,0.3934,2541.8,2541.7,0.78201]
[1726862892610,2.94581323,2541.8,2541.7,0.3886]
[1726862892806,4.09721323,2541.8,2541.7,0.3886]
[1726862893616,4.09721323,2541.8,2541.7,0.78201]
[1726862893808,11.10161323,2541.8,2541.3,0.3914]
[1726862894016,0.39344,2541.5,2541.4,0.39346]
[1726862895216,3.60124,2541.6,2541.4,0.39346]
[1726862895413,0.39344,2541.5,2541.4,0.39346]
[1726862895618,3.2078,2541.6,2541.5,0.39344]
[1726862896322,3.60123,2541.6,2541.5,0.39344]
[1726862896724,3.2078,2541.6,2541.5,0.39344]
[1726862897318,3.60123,2541.6,2541.5,0.39344]
[1726862902120,5.64940147,2541.6,2541.5,0.39344]
[1726862902321,5.64941147,2541.6,2541.5,0.39344]
[1726862902521,3.60124,2541.6,2541.5,0.39344]
[1726862905920,3.2078,2541.6,2541.5,0.39344]
[1726862906130,5.64964117,2541.6,2541.5,0.39344]
[1726862909029,2.44184117,2541.6,2541.5,0.39344]
[1726862911734,0.39343,2541.6,2541.5,0.39344]
[1726862912138,2.44145485,2541.6,2541.5,0.39344]
[1726862912529,0.39343,2541.6,2541.5,0.39344]
[1726862913027,2.44144717,2541.6,2541.5,0.39344]
[1726862913338,2.44143488,2541.6,2541.5,0.39344]
[1726862914537,0.39343,2541.6,2541.5,0.39344]
[1726862914738,2.44143515,2541.6,2541.5,0.39344]
[1726862915436,0.39343,2541.6,2541.5,0.39344]
[1726862915639,2.44155957,2541.6,2541.5,0.39344]
[1726862916831,0.39343,2541.6,2541.5,0.39344]
[1726862917243,2.95364433,2541.6,2541.5,0.39344]
[1726862920836,0.39343,2541.6,2541.5,0.39344]
[1726862921037,2.95446137,2541.6,2541.5,0.39344]
[1726862921342,0.39343,2541.6,2541.5,0.39344]
[1726862922646,3.60123,2541.6,2541.5,0.39344]
[1726862923844,3.60123,2541.6,2541.5,1.81344]
[1726862924345,6.16396467,2541.6,2541.5,1.81344]
[1726862925542,6.16396467,2541.6,2541.5,0.39344]
[1726862928643,3.60123,2541.6,2541.5,0.39344]
[1726862935453,6.67112006,2541.6,2541.5,0.39344]
[1726862935652,3.60123,2541.6,2541.5,0.39344]
[1726862936447,6.67112006,2541.6,2541.5,0.39344]
[1726862936954,3.46331006,2541.7,2541.6,0.39343]
[1726862939550,0.39342,2541.7,2541.6,0.39343]
[1726862941357,3.06989006,2541.8,2541.7,0.39341]
[1726862941553,3.2078,2541.9,2541.8,0.3934]
[1726862941750,3.2078,2541.9,2541.8,1.8134]
[1726862941945,5.77441254,2541.9,2541.8,1.8134]
[1726862942145,6.16779254,2541.9,2541.8,1.8134]
[1726862942848,5.77441254,2541.9,2541.8,1.8134]
[1726862944051,6.16779254,2541.9,2541.8,1.8134]
[1726862944250,6.16779254,2541.9,2541.8,0.3934]
[1726862945964,5.77441254,2541.9,2541.8,0.3934]
[1726862946359,6.16779254,2541.9,2541.8,0.3934]
[1726862946565,5.77441254,2541.9,2541.8,0.3934]
[1726862947747,5.77441254,2541.9,2541.8,1.8134]
[1726862948564,3.2078,2541.9,2541.8,1.8134]
[1726862949564,3.60118,2541.9,2541.8,1.8134]
[1726862949756,3.2078,2541.9,2541.8,1.8134]
[1726862950657,2.95998254,2542.0,2541.9,0.39338]
[1726862954065,2.56661254,2542.0,2541.9,0.39338]
[1726862954360,0.3759,2542.1,2542.0,0.39337]
[1726862954949,0.76926,2542.1,2542.0,0.39337]
[1726862955153,0.39337,2542.0,2541.9,0.79547]
[1726862961465,2.95480586,2542.0,2541.9,0.79547]
[1726862963359,2.95480586,2542.0,2541.9,2.21547]